[Event "106th British-ch Major 2019"]
[Site "Torquay"]
[Date "2019.07.27"]
[Round "1.11"]
[White "Pollack, Oscar"]
[Black "Garnett, John S"]
[Result "1-0"]
[ECO "B16"]
[WhiteElo "2088"]
[BlackElo "1885"]
[Annotator "NA"]
[PlyCount "91"]
[EventDate "2019.07.27"]
[EventType "swiss"]
[EventCountry "GBR"]
[SourceTitle "playchess.com"]
[Source "ChessBase"]
[SourceQuality "1"]
[TimeControl "40/5400+30:1800+30"]

1. e4 {[%emt 0:00:00]} c6 {[%emt 0:00:00]} 2. d4 {[%emt 0:00:27]} d5 {[%emt 0:00:00]} 3. Nc3 {[%emt 0:00:02]} dxe4 {[%emt 0:00:00]} 4. Nxe4 {[%emt 0:00:08]} Nf6 {[%emt 0:00:14]} 5. Nxf6+ {[%emt 0:00:05]} gxf6 {[%emt 0:00:06]} 6. Nf3 {[%emt 0:00:25]} Bf5 {[%emt 0:01:30]} 7. g3 {[%emt 0:03:50]} Nd7 {[%emt 0:02:25]} 8. Bg2 {[%emt 0:00:29]} Nb6 {[%emt 0:00:45]} 9. O-O {[%emt 0:01:17]} Qd7 {[%emt 0:01:44]} 10. Qe2 {[%emt 0:04:56]} O-O-O {[%emt 0:01:56]} 11. a4 {[%emt 0:01:13]} Bh3 {[%emt 0:03:17]} 12. c4 {[%emt 0:04:31]} Bxg2 {[%emt 0:02:30]} 13. Kxg2 {[%emt 0:00:03]} Qe6 {[%emt 0:06:20]} 14. Qxe6+ {[%emt 0:00:11]} fxe6 {[%emt 0:00:06]} 15. b3 {[%emt 0:00:21]} Nd7 {[%emt 0:04:34]} 16. Re1 {[%emt 0:03:38]} c5 {[%emt 0:03:18]} 17. Rxe6 {[%emt 0:06:55]} cxd4 {[%emt 0:01:14]} 18. Ba3 {[%emt 0:00:21]} Nb8 {[%emt 0:19:23]} 19. Rd1 {[%emt 0:05:52]} Nc6 {[%emt 0:02:22]} 20. Bc5 {[%emt 0:10:33]} d3 {[%emt 0:04:19]} 21. b4 {[%emt 0:03:48]} Rd7 {[%emt 0:07:52]} 22. b5 {[%emt 0:03:28]} Nd8 {[%emt 0:00:59]} 23. Re3 {[%emt 0:04:57]} b6 {[%emt 0:01:22]} 24. Bb4 {[%emt 0:03:07]} e5 {[%emt 0:01:35]} 25. Bxf8 {[%emt 0:00:35]} Rxf8 {[%emt 0:00:09]} 26. Nh4 {[%emt 0:00:32]} Nb7 {[%emt 0:07:21]} 27. Rexd3 {[%emt 0:00:51]} Rxd3 {[%emt 0:00:13]} 28. Rxd3 {[%emt 0:00:04]} Nc5 {[%emt 0:04:55]} 29. Rd6 {[%emt 0:04:24]} Nxa4 {[%emt 0:00:00]} 30. Nf5 {[%emt 0:00:53]} Nc5 {[%emt 0:00:37]} 31. Ne7+ {[%emt 0:00:49]} Kc7 {[%emt 0:01:29]} 32. Rc6+ {[%emt 0:00:10]} Kd7 {[%emt 0:01:35]} 33. Nd5 {[%emt 0:01:16]} Ne6 {[%emt 0:01:56]} 34. c5 {[%emt 0:04:32]} bxc5 {[%emt 0:01:57]} 35. Ra6 {[%emt 0:00:24]} h6 {[%emt 0:06:04]} 36. Rxa7+ {[%emt 0:00:19]} Kd6 {[%emt 0:00:24]} 37. Ne3 {[%emt 0:00:32]} f5 {[%emt 0:01:36]} 38. Ra6+ {[%emt 0:00:40]} Kd7 {[%emt 0:00:25]} 39. Nc4 {[%emt 0:00:14]} Nd4 {[%emt 0:02:06]} 40. Nxe5+ {[%emt 0:02:39]} Kc7 {[%emt 0:00:49]} 41. Rxh6 {[%emt 0:30:23]} Nxb5 {[%emt 0:31:06]} 42. Rc6+ {[%emt 0:00:07]} Kd8 {[%emt 0:01:17]} 43. Rxc5 {[%emt 0:01:03]} Nc7 {[%emt 0:00:37]} 44. Nc6+ {[%emt 0:00:23]} Kd7 {[%emt 0:00:54]} 45. Nd4 {[%emt 0:00:16]} f4 {[%emt 0:01:09]} 46. Rxc7+ {[%emt 0:00:07]} 1-0

[Event "106th British-ch Major 2019"]
[Site "Torquay"]
[Date "2019.07.27"]
[Round "1.12"]
[White "Tombolis, Christopher"]
[Black "Shaw, Peter"]
[Result "1/2-1/2"]
[ECO "A80"]
[WhiteElo "1883"]
[BlackElo "2068"]
[Annotator "NA"]
[PlyCount "84"]
[EventDate "2019.07.27"]
[EventType "swiss"]
[EventCountry "GBR"]
[SourceTitle "playchess.com"]
[Source "ChessBase"]
[SourceQuality "1"]
[TimeControl "40/5400+30:1800+30"]

1. d4 {[%emt 0:00:00]} f5 {[%emt 0:00:00]} 2. Nc3 {[%emt 0:00:00]} d5 {[%emt 0:00:00]} 3. e3 {[%emt 0:00:38]} Nf6 {[%emt 0:00:45]} 4. Bd3 {[%emt 0:01:20]} e6 {[%emt 0:01:48]} 5. Nf3 {[%emt 0:02:25]} a6 {[%emt 0:03:35]} 6. a4 {[%emt 0:02:12]} Bd6 {[%emt 0:02:24]} 7. Ne2 {[%emt 0:01:11]} O-O {[%emt 0:08:58]} 8. c4 {[%emt 0:01:56]} c6 {[%emt 0:00:13]} 9. b3 {[%emt 0:01:33]} Qe7 {[%emt 0:05:54]} 10. O-O {[%emt 0:02:30]} Ne4 {[%emt 0:06:09]} 11. Ne5 {[%emt 0:05:27]} Nd7 {[%emt 0:01:44]} 12. Bb2 {[%emt 0:01:05]} Nxe5 {[%emt 0:07:53]} 13. dxe5 {[%emt 0:00:06]} Bb4 {[%emt 0:01:25]} 14. Bxe4 {[%emt 0:01:17]} fxe4 {[%emt 0:01:28]} 15. Nf4 {[%emt 0:02:58]} Bd7 {[%emt 0:05:14]} 16. Qg4 {[%emt 0:04:01]} Rf5 {[%emt 0:05:56]} 17. cxd5 {[%emt 0:01:50]} exd5 {[%emt 0:04:46]} 18. e6 {[%emt 0:03:00]} Rg5 {[%emt 0:00:14]} 19. Qh3 {[%emt 0:05:23]} Bc8 {[%emt 0:11:44]} 20. g3 {[%emt 0:02:34]} Bd6 {[%emt 0:03:15]} 21. Qh4 {[%emt 0:01:15]} h6 {[%emt 0:04:34]} 22. Nh3 {[%emt 0:15:46]} Rf5 {[%emt 0:00:19]} 23. Qxe7 {[%emt 0:00:24]} Bxe7 {[%emt 0:00:05]} 24. Nf4 {[%emt 0:00:51]} Kh7 {[%emt 0:03:43]} 25. g4 {[%emt 0:04:13]} Rf8 {[%emt 0:00:17]} 26. Rac1 {[%emt 0:01:12]} g5 {[%emt 0:01:37]} 27. Nxd5 {[%emt 0:00:18]} cxd5 {[%emt 0:00:08]} 28. Rc7 {[%emt 0:00:14]} Re8 {[%emt 0:01:05]} 29. Ba3 {[%emt 0:01:15]} Bxe6 {[%emt 0:01:54]} 30. Bxe7 {[%emt 0:00:14]} Bxg4 {[%emt 0:01:13]} 31. Rxb7 {[%emt 0:03:45]} Reb8 {[%emt 0:08:21]} 32. Rc7 {[%emt 0:01:21]} Rc8 {[%emt 0:01:58]} 33. Rfc1 {[%emt 0:02:09]} Rxc7 {[%emt 0:00:55]} 34. Rxc7 {[%emt 0:00:02]} Rc8 {[%emt 0:04:32]} 35. Ra7 {[%emt 0:01:32]} Rc1+ {[%emt 0:02:38]} 36. Kg2 {[%emt 0:00:01]} Bf3+ {[%emt 0:00:05]} 37. Kh3 {[%emt 0:00:27]} Kg6 {[%emt 0:01:08]} 38. Rxa6+ {[%emt 0:01:19]} Kh5 {[%emt 0:00:03]} 39. Bf8 {[%emt 0:02:22]} Bg4+ {[%emt 0:00:20]} 40. Kg2 {[%emt 0:00:05]} Bf3+ {[%emt 0:00:22]} 41. Kh3 {[%emt 0:30:07]} Bg4+ {[%emt 0:04:21]} 42. Kg2 {[%emt 0:00:00]} Kh4 {[%emt 0:00:16]} 1/2-1/2

[Event "106th British-ch Major 2019"]
[Site "Torquay"]
[Date "2019.07.27"]
[Round "1.13"]
[White "Sugden, John N"]
[Black "Roy, Ali"]
[Result "1-0"]
[ECO "E81"]
[WhiteElo "2068"]
[BlackElo "1871"]
[Annotator "NA"]
[PlyCount "77"]
[EventDate "2019.07.27"]
[EventType "swiss"]
[EventCountry "GBR"]
[SourceTitle "playchess.com"]
[Source "ChessBase"]
[SourceQuality "1"]
[TimeControl "40/5400+30:1800+30"]

1. d4 {[%emt 0:00:00]} Nf6 {[%emt 0:00:00]} 2. c4 {[%emt 0:00:00]} g6 {[%emt 0:00:00]} 3. Nc3 {[%emt 0:00:23]} Bg7 {[%emt 0:00:09]} 4. e4 {[%emt 0:00:30]} d6 {[%emt 0:00:44]} 5. f3 {[%emt 0:00:38]} O-O {[%emt 0:02:59]} 6. Be3 {[%emt 0:01:08]} Nbd7 {[%emt 0:06:51]} 7. Qd2 {[%emt 0:01:09]} c5 {[%emt 0:08:59]} 8. Nge2 {[%emt 0:06:25]} cxd4 {[%emt 0:02:48]} 9. Nxd4 {[%emt 0:00:46]} Nc5 {[%emt 0:01:24]} 10. Be2 {[%emt 0:01:32]} a6 {[%emt 0:08:59]} 11. O-O {[%emt 0:01:38]} Bd7 {[%emt 0:04:45]} 12. Rac1 {[%emt 0:10:18]} Ne8 {[%emt 0:10:48]} 13. Nd5 {[%emt 0:06:56]} e6 {[%emt 0:15:35]} 14. Nc3 {[%emt 0:00:45]} e5 {[%emt 0:03:26]} 15. Nc2 {[%emt 0:04:14]} f5 {[%emt 0:01:43]} 16. Rcd1 {[%emt 0:10:31]} Ne6 {[%emt 0:02:19]} 17. c5 {[%emt 0:05:48]} fxe4 {[%emt 0:02:06]} 18. Nxe4 {[%emt 0:02:38]} Bc6 {[%emt 0:10:05]} 19. Bc4 {[%emt 0:04:27]} d5 {[%emt 0:00:52]} 20. Bxd5 {[%emt 0:00:33]} Bxd5 {[%emt 0:01:27]} 21. Qxd5 {[%emt 0:00:11]} Qxd5 {[%emt 0:00:56]} 22. Rxd5 {[%emt 0:00:09]} N8c7 {[%emt 0:01:56]} 23. Rd6 {[%emt 0:05:01]} Rfd8 {[%emt 0:04:25]} 24. Rfd1 {[%emt 0:03:01]} a5 {[%emt 0:01:40]} 25. Rxd8+ {[%emt 0:03:54]} Rxd8 {[%emt 0:00:40]} 26. Rxd8+ {[%emt 0:00:11]} Nxd8 {[%emt 0:00:02]} 27. Na3 {[%emt 0:03:10]} Nd5 {[%emt 0:01:10]} 28. Bd2 {[%emt 0:02:41]} Nc6 {[%emt 0:00:57]} 29. Nc4 {[%emt 0:06:38]} a4 {[%emt 0:01:36]} 30. Kf2 {[%emt 0:07:23]} Bf8 {[%emt 0:00:43]} 31. Na5 {[%emt 0:03:06]} Ncb4 {[%emt 0:01:21]} 32. Bxb4 {[%emt 0:02:27]} Nxb4 {[%emt 0:00:04]} 33. Nxb7 {[%emt 0:00:15]} Kf7 {[%emt 0:01:02]} 34. Ke2 {[%emt 0:02:18]} Nxa2 {[%emt 0:01:01]} 35. Kd3 {[%emt 0:00:59]} Ke6 {[%emt 0:00:59]} 36. Kc4 {[%emt 0:00:48]} Nc1 {[%emt 0:00:32]} 37. c6 {[%emt 0:02:38]} Ne2 {[%emt 0:01:11]} 38. Nec5+ {[%emt 0:02:03]} Ke7 {[%emt 0:01:26]} 39. c7 {[%emt 0:00:29]} 1-0

[Event "106th British-ch Major 2019"]
[Site "Torquay"]
[Date "2019.07.27"]
[Round "1.14"]
[White "Rathbone-Jones, Ifan"]
[Black "Taylor, William J"]
[Result "0-1"]
[ECO "E92"]
[WhiteElo "1855"]
[BlackElo "2062"]
[Annotator "NA"]
[PlyCount "76"]
[EventDate "2019.07.27"]
[EventType "swiss"]
[EventCountry "GBR"]
[SourceTitle "playchess.com"]
[Source "ChessBase"]
[SourceQuality "1"]
[TimeControl "40/5400+30:1800+30"]

1. d4 {[%emt 0:00:00]} Nf6 {[%emt 0:05:05]} 2. c4 {[%emt 0:00:00]} g6 {[%emt 0:00:07]} 3. Nc3 {[%emt 0:00:00]} Bg7 {[%emt 0:00:06]} 4. e4 {[%emt 0:00:00]} d6 {[%emt 0:00:04]} 5. Be2 {[%emt 0:00:00]} O-O {[%emt 0:00:12]} 6. Nf3 {[%emt 0:02:58]} e5 {[%emt 0:00:33]} 7. dxe5 {[%emt 0:01:06]} dxe5 {[%emt 0:00:06]} 8. Qxd8 {[%emt 0:00:07]} Rxd8 {[%emt 0:00:05]} 9. Bg5 {[%emt 0:00:06]} Re8 {[%emt 0:00:40]} 10. O-O-O {[%emt 0:02:07]} h6 {[%emt 0:12:44]} 11. Bd2 {[%emt 0:08:31]} Na6 {[%emt 0:07:19]} 12. Ne1 {[%emt 0:09:15]} Be6 {[%emt 0:13:11]} 13. f3 {[%emt 0:02:21]} c6 {[%emt 0:02:56]} 14. Be3 {[%emt 0:01:57]} Kh7 {[%emt 0:03:06]} 15. g4 {[%emt 0:04:48]} Bf8 {[%emt 0:07:43]} 16. a3 {[%emt 0:06:47]} Nc5 {[%emt 0:05:32]} 17. Kc2 {[%emt 0:09:35]} a5 {[%emt 0:02:42]} 18. Nd3 {[%emt 0:05:15]} Nfd7 {[%emt 0:02:01]} 19. Nc1 {[%emt 0:05:15]} a4 {[%emt 0:09:57]} 20. Nb1 {[%emt 0:05:22]} Rec8 {[%emt 0:05:26]} 21. Nd2 {[%emt 0:05:35]} b5 {[%emt 0:03:03]} 22. Na2 {[%emt 0:05:20]} Nb6 {[%emt 0:04:05]} 23. Rc1 {[%emt 0:04:55]} Nxc4 {[%emt 0:02:20]} 24. Nxc4 {[%emt 0:00:31]} bxc4 {[%emt 0:00:17]} 25. Kc3 {[%emt 0:01:50]} Rab8 {[%emt 0:01:22]} 26. Rb1 {[%emt 0:04:26]} Rb3+ {[%emt 0:00:40]} 27. Kd2 {[%emt 0:02:03]} Rd8+ {[%emt 0:00:11]} 28. Ke1 {[%emt 0:00:03]} Rxe3 {[%emt 0:00:31]} 29. Nc3 {[%emt 0:00:03]} Nd3+ {[%emt 0:02:32]} 30. Kf1 {[%emt 0:01:42]} Nxb2 {[%emt 0:02:11]} 31. Rxb2 {[%emt 0:03:09]} Rxc3 {[%emt 0:00:08]} 32. Kg2 {[%emt 0:00:12]} Rxa3 {[%emt 0:00:31]} 33. Rhb1 {[%emt 0:02:04]} Rb3 {[%emt 0:00:40]} 34. h4 {[%emt 0:01:23]} a3 {[%emt 0:00:31]} 35. g5 {[%emt 0:02:27]} Rxb2 {[%emt 0:00:30]} 36. Rg1 {[%emt 0:02:31]} Rxe2+ {[%emt 0:00:46]} 37. Kg3 {[%emt 0:00:05]} Rdd2 {[%emt 0:00:28]} 38. f4 {[%emt 0:00:07]} Rd3# {[%emt 0:00:49]} 0-1

[Event "106th British-ch Major 2019"]
[Site "Torquay"]
[Date "2019.07.27"]
[Round "1.15"]
[White "Hagesather, Arne"]
[Black "Ingham, H William"]
[Result "1-0"]
[ECO "A46"]
[WhiteElo "2046"]
[BlackElo "1854"]
[Annotator "NA"]
[PlyCount "65"]
[EventDate "2019.07.27"]
[EventType "swiss"]
[EventCountry "GBR"]
[SourceTitle "playchess.com"]
[Source "ChessBase"]
[SourceQuality "1"]
[TimeControl "40/5400+30:1800+30"]

1. d4 {[%emt 0:00:00]} Nf6 {[%emt 0:00:57]} 2. g3 {[%emt 0:00:35]} c6 {[%emt 0:00:20]} 3. Bg2 {[%emt 0:00:50]} d6 {[%emt 0:00:10]} 4. Nf3 {[%emt 0:01:38]} Nbd7 {[%emt 0:00:09]} 5. Nbd2 {[%emt 0:01:14]} e5 {[%emt 0:00:37]} 6. dxe5 {[%emt 0:02:42]} dxe5 {[%emt 0:00:14]} 7. Nc4 {[%emt 0:00:25]} Qc7 {[%emt 0:01:57]} 8. Bg5 {[%emt 0:02:36]} b5 {[%emt 0:01:03]} 9. Ncxe5 {[%emt 0:07:58]} Bb7 {[%emt 0:08:14]} 10. Nxd7 {[%emt 0:02:58]} Nxd7 {[%emt 0:04:02]} 11. O-O {[%emt 0:00:54]} Bd6 {[%emt 0:07:31]} 12. Nd4 {[%emt 0:02:14]} O-O {[%emt 0:02:55]} 13. Nxb5 {[%emt 0:04:01]} cxb5 {[%emt 0:07:17]} 14. Bxb7 {[%emt 0:00:11]} Rab8 {[%emt 0:00:29]} 15. Bd5 {[%emt 0:03:44]} h6 {[%emt 0:00:25]} 16. Be3 {[%emt 0:02:25]} Nf6 {[%emt 0:00:44]} 17. Bf3 {[%emt 0:01:01]} Rfd8 {[%emt 0:00:29]} 18. Qc1 {[%emt 0:01:49]} Be5 {[%emt 0:03:16]} 19. c3 {[%emt 0:03:33]} Qe7 {[%emt 0:12:31]} 20. Rd1 {[%emt 0:03:03]} Rdc8 {[%emt 0:05:39]} 21. Bf4 {[%emt 0:04:05]} Bxf4 {[%emt 0:12:14]} 22. Qxf4 {[%emt 0:00:16]} b4 {[%emt 0:00:38]} 23. Rac1 {[%emt 0:03:06]} Rb6 {[%emt 0:14:03]} 24. cxb4 {[%emt 0:04:19]} Rxc1 {[%emt 0:00:13]} 25. Qxc1 {[%emt 0:00:25]} Qxb4 {[%emt 0:06:43]} 26. Rd8+ {[%emt 0:05:47]} Kh7 {[%emt 0:00:00]} 27. Qc2+ {[%emt 0:01:51]} g6 {[%emt 0:00:00]} 28. Qc8 {[%emt 0:01:07]} Qe7 {[%emt 0:00:00]} 29. b3 {[%emt 0:01:49]} h5 {[%emt 0:01:45]} 30. h4 {[%emt 0:06:02]} Re6 {[%emt 0:03:09]} 31. Kf1 {[%emt 0:03:05]} Re5 {[%emt 0:00:14]} 32. Rd4 {[%emt 0:03:57]} Rc5 {[%emt 0:02:28]} 33. Qd8 {[%emt 0:02:40]} 1-0

[Event "106th British-ch Major 2019"]
[Site "Torquay"]
[Date "2019.07.27"]
[Round "1.16"]
[White "Foster, Timothy"]
[Black "Lentzos, Ioanis"]
[Result "1/2-1/2"]
[ECO "A21"]
[WhiteElo "1852"]
[BlackElo "2043"]
[Annotator "NA"]
[PlyCount "82"]
[EventDate "2019.07.27"]
[EventType "swiss"]
[EventCountry "GBR"]
[SourceTitle "playchess.com"]
[Source "ChessBase"]
[SourceQuality "1"]
[TimeControl "40/5400+30:1800+30"]

1. Nf3 {[%emt 0:41:14]} f5 {[%emt 0:00:06]} 2. d3 {[%emt 0:06:09]} Nf6 {[%emt 0:00:16]} 3. g3 {[%emt 0:24:41]} g6 {[%emt 0:00:30]} 4. Bg2 {[%emt 0:00:21]} Bg7 {[%emt 0:00:13]} 5. c4 {[%emt 0:00:22]} O-O {[%emt 0:00:46]} 6. Nc3 {[%emt 0:03:00]} d6 {[%emt 0:00:26]} 7. O-O {[%emt 0:01:48]} e5 {[%emt 0:00:45]} 8. Rb1 {[%emt 0:00:49]} a5 {[%emt 0:00:16]} 9. a3 {[%emt 0:00:04]} Na6 {[%emt 0:00:09]} 10. b4 {[%emt 0:01:42]} axb4 {[%emt 0:00:12]} 11. axb4 {[%emt 0:00:04]} c6 {[%emt 0:00:29]} 12. e4 {[%emt 0:08:01]} Nc7 {[%emt 0:15:56]} 13. Bb2 {[%emt 0:08:08]} Ne6 {[%emt 0:26:44]} 14. Ra1 {[%emt 0:01:21]} Rxa1 {[%emt 0:04:20]} 15. Qxa1 {[%emt 0:00:54]} f4 {[%emt 0:01:12]} 16. Ne2 {[%emt 0:15:19]} g5 {[%emt 0:11:47]} 17. gxf4 {[%emt 0:00:26]} gxf4 {[%emt 0:01:47]} 18. Kh1 {[%emt 0:01:39]} Ng4 {[%emt 0:03:44]} 19. h3 {[%emt 0:02:15]} Nh6 {[%emt 0:08:44]} 20. Rg1 {[%emt 0:01:18]} Ng5 {[%emt 0:00:36]} 21. Qf1 {[%emt 0:05:16]} Nxf3 {[%emt 0:00:45]} 22. Bxf3 {[%emt 0:00:05]} Qh4 {[%emt 0:00:27]} 23. Kh2 {[%emt 0:01:40]} Kh8 {[%emt 0:09:00]} 24. Bc3 {[%emt 0:00:04]} Nf7 {[%emt 0:00:27]} 25. Bg4 {[%emt 0:02:50]} f3 {[%emt 0:02:23]} 26. Bxc8 {[%emt 0:01:11]} fxe2 {[%emt 0:00:38]} 27. Qg2 {[%emt 0:00:04]} Bh6 {[%emt 0:04:11]} 28. Bf5 {[%emt 0:08:19]} Bf4+ {[%emt 0:00:37]} 29. Kh1 {[%emt 0:00:01]} Qf6 {[%emt 0:00:10]} 30. Qg4 {[%emt 0:01:27]} Nh6 {[%emt 0:00:56]} 31. Qxf4 {[%emt 0:02:01]} exf4 {[%emt 0:00:42]} 32. Bxf6+ {[%emt 0:00:04]} Rxf6 {[%emt 0:00:06]} 33. Kg2 {[%emt 0:00:24]} Nxf5 {[%emt 0:02:13]} 34. exf5 {[%emt 0:00:02]} Rxf5 {[%emt 0:00:09]} 35. Kf3 {[%emt 0:00:20]} Re5 {[%emt 0:04:25]} 36. Re1 {[%emt 0:00:04]} Kg7 {[%emt 0:00:11]} 37. Rxe2 {[%emt 0:00:10]} Rxe2 {[%emt 0:00:16]} 38. Kxe2 {[%emt 0:00:04]} Kf6 {[%emt 0:00:08]} 39. d4 {[%emt 0:01:37]} b5 {[%emt 0:02:05]} 40. d5 {[%emt 0:01:46]} bxc4 {[%emt 0:01:09]} 41. dxc6 {[%emt 0:00:50]} Ke6 {[%emt 0:21:02]} 1/2-1/2

[Event "106th British-ch Major 2019"]
[Site "Torquay"]
[Date "2019.07.27"]
[Round "1.17"]
[White "Rice, Chris B"]
[Black "Camp, Imogen Al"]
[Result "1/2-1/2"]
[ECO "C00"]
[WhiteElo "2040"]
[BlackElo "1850"]
[Annotator "NA"]
[PlyCount "80"]
[EventDate "2019.07.27"]
[EventType "swiss"]
[EventCountry "GBR"]
[SourceTitle "playchess.com"]
[Source "ChessBase"]
[SourceQuality "1"]
[TimeControl "40/5400+30:1800+30"]

1. c4 {[%emt 0:00:00]} e6 {[%emt 0:00:00]} 2. e4 {[%emt 0:00:01]} d5 {[%emt 0:01:32]} 3. exd5 {[%emt 0:00:21]} exd5 {[%emt 0:00:04]} 4. cxd5 {[%emt 0:00:08]} Qxd5 {[%emt 0:01:00]} 5. Nc3 {[%emt 0:00:15]} Qa5 {[%emt 0:00:50]} 6. Bc4 {[%emt 0:05:25]} Bb4 {[%emt 0:07:25]} 7. Qb3 {[%emt 0:05:38]} Nh6 {[%emt 0:04:22]} 8. d4 {[%emt 0:01:39]} b5 {[%emt 0:09:51]} 9. Bd5 {[%emt 0:08:48]} c6 {[%emt 0:00:56]} 10. Bxh6 {[%emt 0:03:04]} Bxc3+ {[%emt 0:03:59]} 11. bxc3 {[%emt 0:08:51]} cxd5 {[%emt 0:05:08]} 12. Bxg7 {[%emt 0:01:58]} Rg8 {[%emt 0:01:55]} 13. Be5 {[%emt 0:03:22]} Nc6 {[%emt 0:02:53]} 14. Ne2 {[%emt 0:04:04]} Be6 {[%emt 0:15:11]} 15. Bg3 {[%emt 0:04:32]} O-O-O {[%emt 0:03:34]} 16. O-O {[%emt 0:01:20]} Bf5 {[%emt 0:01:38]} 17. a4 {[%emt 0:05:01]} Bd3 {[%emt 0:02:26]} 18. Rfe1 {[%emt 0:20:05]} Rge8 {[%emt 0:05:35]} 19. axb5 {[%emt 0:07:55]} Qxb5 {[%emt 0:02:43]} 20. Qxb5 {[%emt 0:01:06]} Bxb5 {[%emt 0:00:06]} 21. Nf4 {[%emt 0:01:26]} Bc4 {[%emt 0:01:47]} 22. f3 {[%emt 0:03:58]} a5 {[%emt 0:01:28]} 23. Kf2 {[%emt 0:01:19]} Rxe1 {[%emt 0:03:24]} 24. Kxe1 {[%emt 0:01:12]} Rd7 {[%emt 0:03:59]} 25. Kd2 {[%emt 0:01:42]} Ra7 {[%emt 0:00:58]} 26. Nd3 {[%emt 0:01:40]} a4 {[%emt 0:00:32]} 27. Bd6 {[%emt 0:01:22]} Na5 {[%emt 0:03:30]} 28. Nc1 {[%emt 0:04:02]} Bf1 {[%emt 0:03:48]} 29. Bc5 {[%emt 0:00:03]} Ra6 {[%emt 0:01:08]} 30. Ke1 {[%emt 0:00:19]} Nb3 {[%emt 0:02:11]} 31. Nxb3 {[%emt 0:01:08]} axb3 {[%emt 0:00:07]} 32. Rxa6 {[%emt 0:00:19]} Bxa6 {[%emt 0:00:04]} 33. Ba3 {[%emt 0:00:09]} Kd7 {[%emt 0:00:21]} 34. Kd2 {[%emt 0:00:44]} Kc6 {[%emt 0:01:34]} 35. Ke3 {[%emt 0:00:47]} Kb5 {[%emt 0:02:18]} 36. h4 {[%emt 0:00:54]} Kc4 {[%emt 0:00:31]} 37. Bb2 {[%emt 0:00:49]} Bc8 {[%emt 0:00:46]} 38. g4 {[%emt 0:01:13]} Be6 {[%emt 0:00:41]} 39. Kd2 {[%emt 0:00:59]} f5 {[%emt 0:01:08]} 40. g5 {[%emt 0:00:30]} Bf7 {[%emt 0:00:42]} 1/2-1/2

[Event "106th British-ch Major 2019"]
[Site "Torquay"]
[Date "2019.07.27"]
[Round "1.18"]
[White "Sheerin, Alex"]
[Black "Turner, Max N"]
[Result "1/2-1/2"]
[ECO "D00"]
[WhiteElo "1845"]
[BlackElo "2026"]
[Annotator "NA"]
[PlyCount "63"]
[EventDate "2019.07.27"]
[EventType "swiss"]
[EventCountry "GBR"]
[SourceTitle "playchess.com"]
[Source "ChessBase"]
[SourceQuality "1"]
[TimeControl "40/5400+30:1800+30"]

1. d4 {[%emt 0:00:00]} d5 {[%emt 0:00:00]} 2. Nc3 {[%emt 0:00:00]} Nf6 {[%emt 0:00:04]} 3. Bf4 {[%emt 0:00:00]} c6 {[%emt 0:00:46]} 4. e3 {[%emt 0:00:40]} Bf5 {[%emt 0:00:41]} 5. f3 {[%emt 0:00:39]} e6 {[%emt 0:02:09]} 6. g4 {[%emt 0:00:37]} Bg6 {[%emt 0:00:08]} 7. h4 {[%emt 0:00:04]} h5 {[%emt 0:00:26]} 8. g5 {[%emt 0:03:44]} Nfd7 {[%emt 0:03:18]} 9. Bd3 {[%emt 0:02:13]} Bxd3 {[%emt 0:01:40]} 10. Qxd3 {[%emt 0:00:26]} g6 {[%emt 0:00:39]} 11. e4 {[%emt 0:04:32]} a6 {[%emt 0:04:49]} 12. O-O-O {[%emt 0:04:53]} Bg7 {[%emt 0:06:02]} 13. exd5 {[%emt 0:24:39]} cxd5 {[%emt 0:00:15]} 14. Nxd5 {[%emt 0:00:27]} exd5 {[%emt 0:01:46]} 15. Bd6 {[%emt 0:00:10]} Nf8 {[%emt 0:10:03]} 16. Re1+ {[%emt 0:01:30]} Ne6 {[%emt 0:07:31]} 17. Rxe6+ {[%emt 0:00:37]} fxe6 {[%emt 0:00:05]} 18. Qxg6+ {[%emt 0:00:47]} Kd7 {[%emt 0:00:09]} 19. Bxb8 {[%emt 0:01:14]} Rxb8 {[%emt 0:00:22]} 20. Qxg7+ {[%emt 0:00:10]} Qe7 {[%emt 0:00:16]} 21. Qxe7+ {[%emt 0:02:37]} Kxe7 {[%emt 0:01:35]} 22. Ne2 {[%emt 0:00:45]} Rbf8 {[%emt 0:06:27]} 23. f4 {[%emt 0:00:26]} Kf7 {[%emt 0:08:07]} 24. Kd2 {[%emt 0:01:43]} Kg6 {[%emt 0:00:39]} 25. Ke3 {[%emt 0:00:41]} Rc8 {[%emt 0:00:41]} 26. c3 {[%emt 0:00:51]} Rhf8 {[%emt 0:01:12]} 27. Nc1 {[%emt 0:00:47]} b6 {[%emt 0:16:52]} 28. Nd3 {[%emt 0:01:32]} Kg7 {[%emt 0:00:35]} 29. Ne5 {[%emt 0:01:53]} Rf5 {[%emt 0:00:45]} 30. Rf1 {[%emt 0:01:29]} Rc7 {[%emt 0:02:44]} 31. Rf2 {[%emt 0:07:53]} Kg8 {[%emt 0:03:07]} 32. Rg2 {[%emt 0:03:39]} 1/2-1/2

[Event "106th British-ch Major 2019"]
[Site "Torquay"]
[Date "2019.07.27"]
[Round "1.19"]
[White "Cleary, Mark"]
[Black "May, Paul"]
[Result "1-0"]
[ECO "B06"]
[WhiteElo "2023"]
[BlackElo "1832"]
[Annotator "NA"]
[PlyCount "63"]
[EventDate "2019.07.27"]
[EventType "swiss"]
[EventCountry "GBR"]
[SourceTitle "playchess.com"]
[Source "ChessBase"]
[SourceQuality "1"]
[TimeControl "40/5400+30:1800+30"]

1. d4 {[%emt 0:00:00]} g6 {[%emt 0:00:00]} 2. e4 {[%emt 0:00:00]} Bg7 {[%emt 0:00:00]} 3. Nf3 {[%emt 0:00:00]} d6 {[%emt 0:02:46]} 4. Bc4 {[%emt 0:00:00]} a6 {[%emt 0:04:48]} 5. O-O {[%emt 0:05:44]} b5 {[%emt 0:05:24]} 6. Bb3 {[%emt 0:01:29]} Bb7 {[%emt 0:00:09]} 7. Qe2 {[%emt 0:12:19]} e6 {[%emt 0:00:57]} 8. a4 {[%emt 0:01:58]} Qd7 {[%emt 0:11:35]} 9. Rd1 {[%emt 0:03:40]} Ne7 {[%emt 0:01:14]} 10. Nbd2 {[%emt 0:08:31]} O-O {[%emt 0:03:14]} 11. Nf1 {[%emt 0:02:03]} c6 {[%emt 0:06:21]} 12. c3 {[%emt 0:04:43]} Qc7 {[%emt 0:04:07]} 13. e5 {[%emt 0:05:42]} Nd7 {[%emt 0:13:51]} 14. exd6 {[%emt 0:05:54]} Qxd6 {[%emt 0:00:28]} 15. Ng3 {[%emt 0:01:09]} Nd5 {[%emt 0:05:26]} 16. Ne4 {[%emt 0:05:06]} Qc7 {[%emt 0:03:57]} 17. Bg5 {[%emt 0:06:59]} N7f6 {[%emt 0:16:09]} 18. Nc5 {[%emt 0:02:02]} Nd7 {[%emt 0:00:43]} 19. Ne4 {[%emt 0:01:47]} N7f6 {[%emt 0:00:46]} 20. Bxd5 {[%emt 0:02:58]} Nxd5 {[%emt 0:00:19]} 21. Nc5 {[%emt 0:00:25]} Rae8 {[%emt 0:03:31]} 22. axb5 {[%emt 0:01:53]} cxb5 {[%emt 0:03:23]} 23. Nxa6 {[%emt 0:00:24]} Bxa6 {[%emt 0:01:53]} 24. Rxa6 {[%emt 0:00:07]} Qb7 {[%emt 0:00:42]} 25. Ra5 {[%emt 0:01:59]} Rb8 {[%emt 0:02:15]} 26. Rda1 {[%emt 0:01:00]} h6 {[%emt 0:02:19]} 27. Bd2 {[%emt 0:02:41]} Ra8 {[%emt 0:04:27]} 28. h4 {[%emt 0:01:31]} Rxa5 {[%emt 0:00:27]} 29. Rxa5 {[%emt 0:00:07]} Rb8 {[%emt 0:01:11]} 30. Ne5 {[%emt 0:01:42]} Qb6 {[%emt 0:00:40]} 31. c4 {[%emt 0:04:27]} b4 {[%emt 0:01:26]} 32. Rb5 {[%emt 0:00:38]} 1-0